[Event "Titled Tuesday Blitz June 21 Early 2022"]
[White "Kosteniuk, Alexandra"]
[Black "Ibrahimli, Murad"]
[WhiteFideId "4128125"]
[BlackFideId "13410229"]
[WhiteElo "2469"]
[BlackElo "2109"]
[Result "0-1"]
[Round "06"]
[TimeControl "180+1"]
[Date "2022.06.21"]
[WhiteClock "0:00:10"]
[BlackClock "0:00:07"]

1. e4 {[%clk 0:03:00]}  c5 {[%clk 0:02:59]} 2. c3 {[%clk 0:03:00]}  d5 {[%clk 0:02:57]} 3. exd5 {[%clk 0:03:00]}  Qxd5 {[%clk 0:02:58]} 4. d4 {[%clk 0:03:01]}  Nf6 {[%clk 0:02:55]} 5. Nf3 {[%clk 0:03:01]}  e6 {[%clk 0:02:55]} 6. Be2 {[%clk 0:03:01]}  Be7 {[%clk 0:02:54]} 7. O-O {[%clk 0:03:00]}  cxd4 {[%clk 0:02:53]} 8. Nxd4 {[%clk 0:02:59]}  O-O {[%clk 0:02:54]} 9. Bf3 {[%clk 0:02:57]}  Qd7 {[%clk 0:02:37]} 10. Qe2 {[%clk 0:02:56]}  Qc7 {[%clk 0:02:25]} 11. Nb5 {[%clk 0:02:44]}  Qb6 {[%clk 0:02:23]} 12. Be3 {[%clk 0:02:25]}  Bc5 {[%clk 0:02:22]} 13. Bf4 {[%clk 0:02:25]}  Na6 {[%clk 0:02:21]} 14. a4 {[%clk 0:02:17]}  Bd7 {[%clk 0:02:19]} 15. b4 {[%clk 0:02:04]}  Be7 {[%clk 0:02:17]} 16. Be3 {[%clk 0:02:04]}  Qd8 {[%clk 0:01:55]} 17. Bxb7 {[%clk 0:02:04]}  Nc7 {[%clk 0:01:55]} 18. Bxa8 {[%clk 0:02:01]}  Nxa8 {[%clk 0:01:50]} 19. Nxa7 {[%clk 0:01:59]}  Nc7 {[%clk 0:01:49]} 20. b5 {[%clk 0:01:57]}  Ncd5 {[%clk 0:01:49]} 21. a5 {[%clk 0:01:49]}  Bd6 {[%clk 0:01:34]} 22. b6 {[%clk 0:01:42]}  Nxe3 {[%clk 0:01:29]} 23. fxe3 {[%clk 0:01:40]}  Ne4 {[%clk 0:01:26]} 24. Nd2 {[%clk 0:01:34]}  Qh4 {[%clk 0:00:57]} 25. Nf3 {[%clk 0:01:29]}  Qh6 {[%clk 0:00:42]} 26. Qd3 {[%clk 0:01:27]}  f5 {[%clk 0:00:41]} 27. a6 {[%clk 0:01:09]}  g5 {[%clk 0:00:40]} 28. g3 {[%clk 0:00:41]}  g4 {[%clk 0:00:37]} 29. Nh4 {[%clk 0:00:37]}  Rd8 {[%clk 0:00:27]} 30. Rad1 {[%clk 0:00:36]}  Bc5 {[%clk 0:00:22]} 31. Ng2 {[%clk 0:00:33]}  Bxb6 {[%clk 0:00:20]} 32. Nb5 {[%clk 0:00:30]}  Bxb5 {[%clk 0:00:17]} 33. Qxd8+ {[%clk 0:00:25]}  Bxd8 {[%clk 0:00:16]} 34. Rxd8+ {[%clk 0:00:26]}  Kg7 {[%clk 0:00:15]} 35. a7 {[%clk 0:00:26]}  Bc6 {[%clk 0:00:15]} 36. Rfd1 {[%clk 0:00:25]}  Qf6 {[%clk 0:00:10]} 37. R1d7+ {[%clk 0:00:23]}  Kh6 {[%clk 0:00:10]} 38. Rd4 {[%clk 0:00:17]}  Qe5 {[%clk 0:00:07]} 39. Nf4 {[%clk 0:00:16]}  Qa5 {[%clk 0:00:07]} 40. Nxe6 {[%clk 0:00:11]}  Qxc3 {[%clk 0:00:07]} 41. Rd3 {[%clk 0:00:10]}  Qe1+ {[%clk 0:00:07]} 0-1


[Site "https://www.chess.com"]

[Event "Titled Tuesday Blitz June 21 Early 2022"]
[White "Kvaloy, Aksel Bu"]
[Black "Snehal, Bhosale"]
[WhiteFideId "1528815"]
[BlackFideId "5021995"]
[WhiteElo "2006"]
[BlackElo "2103"]
[Result "1/2-1/2"]
[Round "06"]
[TimeControl "180+1"]
[Date "2022.06.21"]
[WhiteClock "0:00:05"]
[BlackClock "0:00:21"]

1. e4 {[%clk 0:03:00]}  c5 {[%clk 0:02:58]} 2. Nf3 {[%clk 0:03:00]}  d6 {[%clk 0:02:59]} 3. d4 {[%clk 0:02:56]}  cxd4 {[%clk 0:02:59]} 4. Nxd4 {[%clk 0:02:47]}  Nf6 {[%clk 0:03:00]} 5. Nc3 {[%clk 0:02:45]}  Nc6 {[%clk 0:03:00]} 6. Bg5 {[%clk 0:02:42]}  e6 {[%clk 0:03:01]} 7. Qd3 {[%clk 0:02:33]}  Be7 {[%clk 0:03:00]} 8. O-O-O {[%clk 0:02:30]}  O-O {[%clk 0:02:58]} 9. h4 {[%clk 0:02:29]}  Bd7 {[%clk 0:02:50]} 10. Kb1 {[%clk 0:02:24]}  Rc8 {[%clk 0:02:48]} 11. Nb3 {[%clk 0:02:05]}  Ne5 {[%clk 0:02:40]} 12. Qd2 {[%clk 0:01:56]}  a6 {[%clk 0:02:27]} 13. Be2 {[%clk 0:01:54]}  b5 {[%clk 0:02:25]} 14. f4 {[%clk 0:01:49]}  Neg4 {[%clk 0:02:16]} 15. Bxg4 {[%clk 0:01:27]}  Nxg4 {[%clk 0:02:15]} 16. Bxe7 {[%clk 0:01:26]}  Qxe7 {[%clk 0:02:16]} 17. Qxd6 {[%clk 0:01:26]}  Qxd6 {[%clk 0:02:12]} 18. Rxd6 {[%clk 0:01:27]}  Bc6 {[%clk 0:02:02]} 19. a3 {[%clk 0:01:21]}  Rfd8 {[%clk 0:01:58]} 20. Rhd1 {[%clk 0:01:18]}  Rxd6 {[%clk 0:01:38]} 21. Rxd6 {[%clk 0:01:19]}  Nf6 {[%clk 0:01:35]} 22. e5 {[%clk 0:01:03]}  Ne4 {[%clk 0:01:25]} 23. Nxe4 {[%clk 0:00:55]}  Bxe4 {[%clk 0:01:26]} 24. Nd4 {[%clk 0:00:55]}  Bxg2 {[%clk 0:01:22]} 25. Rxa6 {[%clk 0:00:54]}  Rc4 {[%clk 0:01:07]} 26. Nxb5 {[%clk 0:00:51]}  Rxf4 {[%clk 0:01:06]} 27. Rd6 {[%clk 0:00:31]}  h5 {[%clk 0:01:06]} 28. Rd4 {[%clk 0:00:30]}  Rf5 {[%clk 0:01:00]} 29. Rd8+ {[%clk 0:00:23]}  Kh7 {[%clk 0:00:59]} 30. Nd6 {[%clk 0:00:23]}  Rf1+ {[%clk 0:00:38]} 31. Ka2 {[%clk 0:00:22]}  g5 {[%clk 0:00:38]} 32. hxg5 {[%clk 0:00:19]}  h4 {[%clk 0:00:38]} 33. Ne8 {[%clk 0:00:17]}  h3 {[%clk 0:00:36]} 34. Nf6+ {[%clk 0:00:18]}  Rxf6 {[%clk 0:00:34]} 35. gxf6 {[%clk 0:00:15]}  Bd5+ {[%clk 0:00:35]} 36. c4 {[%clk 0:00:12]}  h2 {[%clk 0:00:34]} 37. cxd5 {[%clk 0:00:13]}  h1=Q {[%clk 0:00:34]} 38. dxe6 {[%clk 0:00:12]}  fxe6 {[%clk 0:00:33]} 39. Rd6 {[%clk 0:00:11]}  Kg6 {[%clk 0:00:31]} 40. a4 {[%clk 0:00:07]}  Qe4 {[%clk 0:00:31]} 41. a5 {[%clk 0:00:05]}  Qxe5 {[%clk 0:00:31]} 42. Ra6 {[%clk 0:00:05]}  Qf4 {[%clk 0:00:29]} 43. b3 {[%clk 0:00:04]}  Qe3 {[%clk 0:00:28]} 44. Ka3 {[%clk 0:00:04]}  Qc5+ {[%clk 0:00:26]} 45. b4 {[%clk 0:00:03]}  Qd4 {[%clk 0:00:24]} 46. Ka4 {[%clk 0:00:03]}  Kxf6 {[%clk 0:00:22]} 47. Rb6 {[%clk 0:00:03]}  Ke7 {[%clk 0:00:21]} 48. Kb5 {[%clk 0:00:04]}  Qd3+ {[%clk 0:00:20]} 49. Kc6 {[%clk 0:00:03]}  e5 {[%clk 0:00:20]} 50. a6 {[%clk 0:00:03]}  e4 {[%clk 0:00:19]} 51. a7 {[%clk 0:00:03]}  e3 {[%clk 0:00:19]} 52. Kc7 {[%clk 0:00:02]}  Qe4 {[%clk 0:00:19]} 53. Rb7 {[%clk 0:00:02]}  Qc4+ {[%clk 0:00:19]} 54. Kb6+ {[%clk 0:00:02]}  Kd6 {[%clk 0:00:20]} 55. a8=Q {[%clk 0:00:03]}  Qxb4+ {[%clk 0:00:20]} 56. Ka7 {[%clk 0:00:03]}  Qa5+ {[%clk 0:00:20]} 57. Kb8 {[%clk 0:00:04]}  Qd8+ {[%clk 0:00:20]} 58. Ka7 {[%clk 0:00:04]}  Qa5+ {[%clk 0:00:21]} 59. Kb8 {[%clk 0:00:05]}  Qd8+ {[%clk 0:00:21]} 60. Ka7 {[%clk 0:00:05]}  Qa5+ {[%clk 0:00:21]} 1/2-1/2


[Site "https://www.chess.com"]

[Event "Titled Tuesday Blitz June 21 Early 2022"]
[White "Kvon, Andrey"]
[Black "Yedidia, Daniel"]
[WhiteFideId "14201356"]
[BlackFideId "30905907"]
[WhiteElo "2458"]
[BlackElo "2593"]
[Result "0-1"]
[Round "06"]
[TimeControl "180+1"]
[Date "2022.06.21"]
[WhiteClock "0:00:56"]
[BlackClock "0:01:01"]

1. d4 {[%clk 0:02:19]}  Nf6 {[%clk 0:02:51]} 2. Nc3 {[%clk 0:02:19]}  d5 {[%clk 0:02:45]} 3. Bf4 {[%clk 0:02:19]}  c6 {[%clk 0:02:45]} 4. e3 {[%clk 0:02:17]}  Bf5 {[%clk 0:02:45]} 5. Bd3 {[%clk 0:02:17]}  Bxd3 {[%clk 0:02:45]} 6. cxd3 {[%clk 0:02:18]}  Nbd7 {[%clk 0:02:45]} 7. Nge2 {[%clk 0:02:18]}  g6 {[%clk 0:02:40]} 8. O-O {[%clk 0:02:18]}  Bg7 {[%clk 0:02:41]} 9. b4 {[%clk 0:02:18]}  Nh5 {[%clk 0:02:41]} 10. b5 {[%clk 0:02:15]}  Nxf4 {[%clk 0:02:39]} 11. Nxf4 {[%clk 0:02:16]}  e5 {[%clk 0:02:37]} 12. bxc6 {[%clk 0:02:14]}  bxc6 {[%clk 0:02:33]} 13. dxe5 {[%clk 0:02:11]}  Bxe5 {[%clk 0:02:32]} 14. Nfe2 {[%clk 0:02:08]}  O-O {[%clk 0:02:31]} 15. d4 {[%clk 0:02:07]}  Bg7 {[%clk 0:02:26]} 16. Qa4 {[%clk 0:02:06]}  Qf6 {[%clk 0:02:19]} 17. Rac1 {[%clk 0:02:05]}  Nb6 {[%clk 0:02:16]} 18. Qa6 {[%clk 0:01:57]}  Nc4 {[%clk 0:02:11]} 19. Ne4 {[%clk 0:01:57]}  Qf5 {[%clk 0:02:04]} 20. N2g3 {[%clk 0:01:54]}  Qd7 {[%clk 0:01:57]} 21. Nc5 {[%clk 0:01:54]}  Qc7 {[%clk 0:01:58]} 22. Rc2 {[%clk 0:01:38]}  Rab8 {[%clk 0:01:57]} 23. Rfc1 {[%clk 0:01:31]}  Rb6 {[%clk 0:01:56]} 24. Qa4 {[%clk 0:01:31]}  Rfb8 {[%clk 0:01:55]} 25. h4 {[%clk 0:01:30]}  Rb4 {[%clk 0:01:38]} 26. Rxc4 {[%clk 0:01:27]}  Rxa4 {[%clk 0:01:35]} 27. Rxa4 {[%clk 0:01:26]}  Rb6 {[%clk 0:01:30]} 28. h5 {[%clk 0:01:25]}  Bf8 {[%clk 0:01:28]} 29. Nd3 {[%clk 0:01:23]}  Qb7 {[%clk 0:01:26]} 30. Kh2 {[%clk 0:01:18]}  Bd6 {[%clk 0:01:25]} 31. hxg6 {[%clk 0:01:16]}  hxg6 {[%clk 0:01:25]} 32. Ra5 {[%clk 0:01:11]}  Rb1 {[%clk 0:01:22]} 33. Rxa7 {[%clk 0:01:11]}  Qxa7 {[%clk 0:01:18]} 34. Rxb1 {[%clk 0:01:11]}  Qxa2 {[%clk 0:01:18]} 35. Rb6 {[%clk 0:01:06]}  Qc2 {[%clk 0:01:15]} 36. Ne5 {[%clk 0:00:57]}  Qxf2 {[%clk 0:01:02]} 37. Rxc6 {[%clk 0:00:56]}  Bxe5 {[%clk 0:01:02]} 38. dxe5 {[%clk 0:00:56]}  Qxe3 {[%clk 0:01:02]} 39. e6 {[%clk 0:00:55]}  fxe6 {[%clk 0:01:02]} 40. Rc7 {[%clk 0:00:56]}  d4 {[%clk 0:01:01]} 0-1


[Site "https://www.chess.com"]

[Event "Titled Tuesday Blitz June 21 Early 2022"]
[White "Legenia, Artem"]
[Black "Lorente Serrano, Rosa Adela"]
[WhiteFideId "14136945"]
[BlackFideId "32091982"]
[WhiteElo "1936"]
[BlackElo "1820"]
[Result "1-0"]
[Round "06"]
[TimeControl "180+1"]
[Date "2022.06.21"]
[WhiteClock "0:01:56"]
[BlackClock "0:00:38"]

1. d4 {[%clk 0:03:00]}  Nf6 {[%clk 0:02:52]} 2. Nf3 {[%clk 0:02:59]}  g6 {[%clk 0:02:52]} 3. e3 {[%clk 0:02:57]}  Bg7 {[%clk 0:02:50]} 4. b3 {[%clk 0:02:58]}  O-O {[%clk 0:02:50]} 5. Bb2 {[%clk 0:02:58]}  d6 {[%clk 0:02:50]} 6. Bd3 {[%clk 0:02:57]}  Nbd7 {[%clk 0:02:50]} 7. Nbd2 {[%clk 0:02:57]}  e5 {[%clk 0:02:49]} 8. O-O {[%clk 0:02:55]}  Re8 {[%clk 0:02:44]} 9. dxe5 {[%clk 0:02:51]}  Ng4 {[%clk 0:02:43]} 10. Qc1 {[%clk 0:02:38]}  Ndxe5 {[%clk 0:02:41]} 11. Nxe5 {[%clk 0:02:37]}  Nxe5 {[%clk 0:02:41]} 12. Be2 {[%clk 0:02:37]}  a5 {[%clk 0:02:22]} 13. Nf3 {[%clk 0:02:32]}  a4 {[%clk 0:02:13]} 14. Bxe5 {[%clk 0:02:28]}  dxe5 {[%clk 0:02:13]} 15. e4 {[%clk 0:02:27]}  c6 {[%clk 0:02:09]} 16. b4 {[%clk 0:02:20]}  a3 {[%clk 0:01:13]} 17. c4 {[%clk 0:02:18]}  Qb6 {[%clk 0:01:11]} 18. Qc3 {[%clk 0:02:18]}  Bg4 {[%clk 0:01:00]} 19. c5 {[%clk 0:02:14]}  Qc7 {[%clk 0:00:56]} 20. Rad1 {[%clk 0:02:14]}  Ra4 {[%clk 0:00:50]} 21. h3 {[%clk 0:02:13]}  Bxf3 {[%clk 0:00:49]} 22. Bxf3 {[%clk 0:02:14]}  b6 {[%clk 0:00:47]} 23. Qb3 {[%clk 0:02:02]}  Rea8 {[%clk 0:00:42]} 24. Bg4 {[%clk 0:01:59]}  b5 {[%clk 0:00:38]} 25. Rd7 {[%clk 0:01:56]} 1-0


[Site "https://www.chess.com"]

[Event "Titled Tuesday Blitz June 21 Early 2022"]
[White "Leve, Nitai"]
[Black "Barria Zuniga, Daniel"]
[WhiteFideId "2006898"]
[BlackFideId "3400816"]
[WhiteElo "2144"]
[BlackElo "2414"]
[Result "1-0"]
[Round "06"]
[TimeControl "180+1"]
[Date "2022.06.21"]
[WhiteClock "0:00:02"]
[BlackClock "0:00:09"]

1. d4 {[%clk 0:03:00]}  c6 {[%clk 0:02:58]} 2. c4 {[%clk 0:03:00]}  d5 {[%clk 0:02:57]} 3. Nc3 {[%clk 0:03:01]}  dxc4 {[%clk 0:02:57]} 4. Nf3 {[%clk 0:02:58]}  b5 {[%clk 0:02:56]} 5. a4 {[%clk 0:02:53]}  b4 {[%clk 0:02:55]} 6. Na2 {[%clk 0:02:53]}  e6 {[%clk 0:02:51]} 7. e4 {[%clk 0:02:53]}  Ba6 {[%clk 0:02:39]} 8. Be2 {[%clk 0:02:44]}  Nf6 {[%clk 0:02:37]} 9. e5 {[%clk 0:02:42]}  Nd5 {[%clk 0:02:37]} 10. O-O {[%clk 0:02:42]}  c5 {[%clk 0:02:37]} 11. Bg5 {[%clk 0:02:33]}  Qb6 {[%clk 0:02:35]} 12. Rc1 {[%clk 0:02:27]}  h6 {[%clk 0:02:00]} 13. Be3 {[%clk 0:02:13]}  Nxe3 {[%clk 0:01:47]} 14. fxe3 {[%clk 0:02:14]}  c3 {[%clk 0:01:48]} 15. Bxa6 {[%clk 0:02:06]}  Nxa6 {[%clk 0:01:43]} 16. bxc3 {[%clk 0:02:01]}  b3 {[%clk 0:01:42]} 17. Rb1 {[%clk 0:02:01]}  c4 {[%clk 0:01:39]} 18. Nd2 {[%clk 0:01:33]}  Qc6 {[%clk 0:01:33]} 19. Nc1 {[%clk 0:01:31]}  Rc8 {[%clk 0:01:20]} 20. Qg4 {[%clk 0:01:22]}  g6 {[%clk 0:01:11]} 21. Qf4 {[%clk 0:00:59]}  Be7 {[%clk 0:01:10]} 22. Qxf7+ {[%clk 0:00:57]}  Kd7 {[%clk 0:01:09]} 23. Qxg6 {[%clk 0:00:31]}  Rhg8 {[%clk 0:01:08]} 24. Qe4 {[%clk 0:00:32]}  Qxe4 {[%clk 0:01:08]} 25. Nxe4 {[%clk 0:00:33]}  Nc7 {[%clk 0:01:08]} 26. Nxb3 {[%clk 0:00:28]}  cxb3 {[%clk 0:01:07]} 27. Rxb3 {[%clk 0:00:29]}  Rb8 {[%clk 0:01:06]} 28. Rxb8 {[%clk 0:00:24]}  Rxb8 {[%clk 0:01:06]} 29. Rf7 {[%clk 0:00:25]}  Rb1+ {[%clk 0:01:04]} 30. Kf2 {[%clk 0:00:25]}  Rb2+ {[%clk 0:01:04]} 31. Kf3 {[%clk 0:00:24]}  Nd5 {[%clk 0:00:34]} 32. c4 {[%clk 0:00:21]}  Ke8 {[%clk 0:00:23]} 33. Rh7 {[%clk 0:00:17]}  Nb6 {[%clk 0:00:23]} 34. c5 {[%clk 0:00:15]}  Nxa4 {[%clk 0:00:22]} 35. Nd6+ {[%clk 0:00:12]}  Bxd6 {[%clk 0:00:22]} 36. exd6 {[%clk 0:00:13]}  Rc2 {[%clk 0:00:20]} 37. Rxa7 {[%clk 0:00:11]}  Nxc5 {[%clk 0:00:20]} 38. dxc5 {[%clk 0:00:11]}  Rxc5 {[%clk 0:00:19]} 39. Re7+ {[%clk 0:00:12]}  Kf8 {[%clk 0:00:18]} 40. Rxe6 {[%clk 0:00:12]}  h5 {[%clk 0:00:18]} 41. e4 {[%clk 0:00:12]}  Kf7 {[%clk 0:00:18]} 42. Re7+ {[%clk 0:00:12]}  Kf6 {[%clk 0:00:19]} 43. Rh7 {[%clk 0:00:10]}  Rc1 {[%clk 0:00:16]} 44. d7 {[%clk 0:00:09]}  Rd1 {[%clk 0:00:15]} 45. Kf4 {[%clk 0:00:09]}  Kg6 {[%clk 0:00:15]} 46. Re7 {[%clk 0:00:08]}  Kf6 {[%clk 0:00:15]} 47. Rh7 {[%clk 0:00:05]}  Kg6 {[%clk 0:00:14]} 48. Rh8 {[%clk 0:00:06]}  Rxd7 {[%clk 0:00:14]} 49. e5 {[%clk 0:00:06]}  Rd1 {[%clk 0:00:14]} 50. Ra8 {[%clk 0:00:05]}  Rf1+ {[%clk 0:00:13]} 51. Ke4 {[%clk 0:00:05]}  Re1+ {[%clk 0:00:13]} 52. Kd5 {[%clk 0:00:05]}  Rd1+ {[%clk 0:00:13]} 53. Ke6 {[%clk 0:00:06]}  Rd2 {[%clk 0:00:13]} 54. Rg8+ {[%clk 0:00:05]}  Kh7 {[%clk 0:00:13]} 55. Rg3 {[%clk 0:00:05]}  h4 {[%clk 0:00:13]} 56. Rg4 {[%clk 0:00:05]}  Kh6 {[%clk 0:00:13]} 57. Rxh4+ {[%clk 0:00:06]}  Kg5 {[%clk 0:00:13]} 58. Rh8 {[%clk 0:00:05]}  Kf4 {[%clk 0:00:13]} 59. Rf8+ {[%clk 0:00:05]}  Ke4 {[%clk 0:00:13]} 60. Rf1 {[%clk 0:00:04]}  Rxg2 {[%clk 0:00:12]} 61. Kf6 {[%clk 0:00:02]}  Rxh2 {[%clk 0:00:10]} 62. e6 {[%clk 0:00:03]}  Rh6+ {[%clk 0:00:09]} 63. Kf7 {[%clk 0:00:03]}  Rh7+ {[%clk 0:00:09]} 64. Ke8 {[%clk 0:00:04]}  Ra7 {[%clk 0:00:09]} 65. e7 {[%clk 0:00:03]}  Ke5 {[%clk 0:00:09]} 66. Kf8 {[%clk 0:00:02]} 1-0


[Site "https://www.chess.com"]

[Event "Titled Tuesday Blitz June 21 Early 2022"]
[White "Mahdavi, Reza"]
[Black "Yen, William"]
[WhiteFideId "12595926"]
[BlackFideId "30932025"]
[WhiteElo "2265"]
[BlackElo "1905"]
[Result "1-0"]
[Round "06"]
[TimeControl "180+1"]
[Date "2022.06.21"]
[WhiteClock "0:00:08"]
[BlackClock "0:00:06"]

1. e4 {[%clk 0:02:41]}  e6 {[%clk 0:02:58]} 2. d4 {[%clk 0:02:40]}  d5 {[%clk 0:02:59]} 3. Nc3 {[%clk 0:02:40]}  Bb4 {[%clk 0:02:56]} 4. Bd3 {[%clk 0:02:41]}  dxe4 {[%clk 0:02:49]} 5. Bxe4 {[%clk 0:02:42]}  Nf6 {[%clk 0:02:46]} 6. Bf3 {[%clk 0:02:42]}  c5 {[%clk 0:02:43]} 7. Be3 {[%clk 0:02:35]}  O-O {[%clk 0:02:38]} 8. dxc5 {[%clk 0:02:32]}  Qa5 {[%clk 0:02:35]} 9. Ne2 {[%clk 0:02:32]}  Rd8 {[%clk 0:02:31]} 10. Qc1 {[%clk 0:02:30]}  Nbd7 {[%clk 0:02:31]} 11. a3 {[%clk 0:02:26]}  Bxc5 {[%clk 0:02:26]} 12. b4 {[%clk 0:02:26]}  Bxe3 {[%clk 0:02:25]} 13. Qxe3 {[%clk 0:02:27]}  Qc7 {[%clk 0:02:20]} 14. Rd1 {[%clk 0:02:25]}  a6 {[%clk 0:02:19]} 15. O-O {[%clk 0:02:24]}  Rb8 {[%clk 0:01:59]} 16. Nd4 {[%clk 0:02:17]}  Ne5 {[%clk 0:01:56]} 17. Rfe1 {[%clk 0:02:02]}  Nxf3+ {[%clk 0:01:51]} 18. Nxf3 {[%clk 0:02:03]}  Bd7 {[%clk 0:01:51]} 19. Ne4 {[%clk 0:02:00]}  Nxe4 {[%clk 0:01:49]} 20. Qxe4 {[%clk 0:02:01]}  Bc6 {[%clk 0:01:48]} 21. Qe5 {[%clk 0:02:02]}  Qxe5 {[%clk 0:01:36]} 22. Nxe5 {[%clk 0:02:03]}  Ba4 {[%clk 0:01:36]} 23. Rxd8+ {[%clk 0:01:37]}  Rxd8 {[%clk 0:01:37]} 24. c4 {[%clk 0:01:36]}  f6 {[%clk 0:01:27]} 25. Nf3 {[%clk 0:01:36]}  e5 {[%clk 0:01:27]} 26. Kf1 {[%clk 0:01:31]}  Kf7 {[%clk 0:01:23]} 27. Ke2 {[%clk 0:01:28]}  Bc2 {[%clk 0:01:23]} 28. Rc1 {[%clk 0:01:26]}  Bd3+ {[%clk 0:01:11]} 29. Ke3 {[%clk 0:01:26]}  Bg6 {[%clk 0:01:06]} 30. Rc3 {[%clk 0:01:19]}  Rd1 {[%clk 0:01:03]} 31. c5 {[%clk 0:01:08]}  Ke7 {[%clk 0:00:59]} 32. Nd2 {[%clk 0:01:06]}  Re1+ {[%clk 0:00:54]} 33. Kf3 {[%clk 0:01:06]}  Kd7 {[%clk 0:00:52]} 34. Nb3 {[%clk 0:01:01]}  Rd1 {[%clk 0:00:48]} 35. c6+ {[%clk 0:01:00]}  bxc6 {[%clk 0:00:44]} 36. Nc5+ {[%clk 0:01:00]}  Kd6 {[%clk 0:00:44]} 37. Nxa6 {[%clk 0:01:01]}  Rd3+ {[%clk 0:00:39]} 38. Rxd3+ {[%clk 0:01:01]}  Bxd3 {[%clk 0:00:40]} 39. Nc5 {[%clk 0:01:02]}  Bc4 {[%clk 0:00:36]} 40. Ke3 {[%clk 0:01:02]}  h5 {[%clk 0:00:29]} 41. a4 {[%clk 0:00:59]}  g5 {[%clk 0:00:27]} 42. a5 {[%clk 0:00:40]}  f5 {[%clk 0:00:26]} 43. Kd2 {[%clk 0:00:35]}  Kc7 {[%clk 0:00:23]} 44. g3 {[%clk 0:00:32]}  f4 {[%clk 0:00:22]} 45. Ne4 {[%clk 0:00:30]}  fxg3 {[%clk 0:00:20]} 46. fxg3 {[%clk 0:00:31]}  g4 {[%clk 0:00:16]} 47. Nf6 {[%clk 0:00:31]}  Bf7 {[%clk 0:00:16]} 48. Ke3 {[%clk 0:00:32]}  Kd6 {[%clk 0:00:10]} 49. a6 {[%clk 0:00:32]}  Kc7 {[%clk 0:00:06]} 50. Nd7 {[%clk 0:00:29]}  Bd5 {[%clk 0:00:06]} 51. Nf6 {[%clk 0:00:19]}  Bf7 {[%clk 0:00:06]} 52. Ke4 {[%clk 0:00:19]}  Kb6 {[%clk 0:00:06]} 53. Kxe5 {[%clk 0:00:19]}  Kxa6 {[%clk 0:00:06]} 54. Kd6 {[%clk 0:00:17]}  Kb5 {[%clk 0:00:06]} 55. Nd7 {[%clk 0:00:17]}  Bd5 {[%clk 0:00:04]} 56. Nf6 {[%clk 0:00:14]}  Bf7 {[%clk 0:00:04]} 57. Nd7 {[%clk 0:00:08]}  Bd5 {[%clk 0:00:04]} 58. Ne5 {[%clk 0:00:04]}  Kxb4 {[%clk 0:00:03]} 59. Nxc6+ {[%clk 0:00:05]}  Bxc6 {[%clk 0:00:03]} 60. Kxc6 {[%clk 0:00:06]}  Kc4 {[%clk 0:00:03]} 61. Kd6 {[%clk 0:00:06]}  Kd4 {[%clk 0:00:04]} 62. Ke6 {[%clk 0:00:06]}  Ke4 {[%clk 0:00:05]} 63. Kf6 {[%clk 0:00:07]}  Kf3 {[%clk 0:00:06]} 64. Kg5 {[%clk 0:00:08]}  Kg2 {[%clk 0:00:06]} 65. Kxh5 {[%clk 0:00:08]}  Kxh2 {[%clk 0:00:06]} 66. Kh4 {[%clk 0:00:08]} 1-0


[Site "https://www.chess.com"]

[Event "Titled Tuesday Blitz June 21 Early 2022"]
[White "Makarian, Rudik"]
[Black "Jobava, Baadur"]
[WhiteFideId "44105681"]
[BlackFideId "13601520"]
[WhiteElo "2398"]
[BlackElo "2617"]
[Result "0-1"]
[Round "06"]
[TimeControl "180+1"]
[Date "2022.06.21"]
[WhiteClock "0:00:06"]
[BlackClock "0:00:29"]

1. d3 {[%clk 0:03:00]}  d5 {[%clk 0:02:59]} 2. f4 {[%clk 0:03:01]}  b6 {[%clk 0:02:58]} 3. g3 {[%clk 0:03:00]}  Bb7 {[%clk 0:02:59]} 4. Bg2 {[%clk 0:03:00]}  e6 {[%clk 0:02:59]} 5. Nf3 {[%clk 0:03:01]}  Nf6 {[%clk 0:02:58]} 6. O-O {[%clk 0:03:02]}  Nc6 {[%clk 0:02:54]} 7. Kh1 {[%clk 0:02:59]}  h5 {[%clk 0:02:54]} 8. Qe1 {[%clk 0:02:57]}  d4 {[%clk 0:02:47]} 9. Ne5 {[%clk 0:02:42]}  Nd5 {[%clk 0:02:47]} 10. Nxc6 {[%clk 0:02:29]}  Bxc6 {[%clk 0:02:48]} 11. c4 {[%clk 0:02:26]}  Nb4 {[%clk 0:02:29]} 12. Bxc6+ {[%clk 0:02:25]}  Nxc6 {[%clk 0:02:30]} 13. h3 {[%clk 0:02:17]}  Qd7 {[%clk 0:02:30]} 14. Nd2 {[%clk 0:02:14]}  Bb4 {[%clk 0:02:27]} 15. a3 {[%clk 0:02:12]}  Bxd2 {[%clk 0:02:27]} 16. Bxd2 {[%clk 0:02:13]}  Ne7 {[%clk 0:02:28]} 17. Qf2 {[%clk 0:02:11]}  Nf5 {[%clk 0:02:28]} 18. Kh2 {[%clk 0:02:10]}  O-O-O {[%clk 0:02:26]} 19. Qf3 {[%clk 0:02:05]}  Kb8 {[%clk 0:02:26]} 20. a4 {[%clk 0:02:01]}  Qc8 {[%clk 0:01:46]} 21. a5 {[%clk 0:01:46]}  Qb7 {[%clk 0:01:47]} 22. Qxb7+ {[%clk 0:01:37]}  Kxb7 {[%clk 0:01:46]} 23. b4 {[%clk 0:01:38]}  c6 {[%clk 0:01:33]} 24. Kg2 {[%clk 0:01:25]}  b5 {[%clk 0:01:29]} 25. a6+ {[%clk 0:01:23]}  Kb6 {[%clk 0:01:30]} 26. c5+ {[%clk 0:01:21]}  Kc7 {[%clk 0:01:30]} 27. g4 {[%clk 0:01:12]}  Ne7 {[%clk 0:01:24]} 28. f5 {[%clk 0:01:09]}  hxg4 {[%clk 0:01:23]} 29. hxg4 {[%clk 0:00:53]}  exf5 {[%clk 0:01:23]} 30. gxf5 {[%clk 0:00:40]}  f6 {[%clk 0:01:21]} 31. Rf4 {[%clk 0:00:16]}  Rh5 {[%clk 0:01:07]} 32. Rh1 {[%clk 0:00:16]}  Rxf5 {[%clk 0:00:58]} 33. Kf3 {[%clk 0:00:17]}  Rxf4+ {[%clk 0:00:37]} 34. Bxf4+ {[%clk 0:00:18]}  Kd7 {[%clk 0:00:38]} 35. Ke4 {[%clk 0:00:17]}  Ke6 {[%clk 0:00:36]} 36. Rh7 {[%clk 0:00:15]}  Nf5 {[%clk 0:00:35]} 37. Bd6 {[%clk 0:00:12]}  Nxd6+ {[%clk 0:00:26]} 38. cxd6 {[%clk 0:00:13]}  Rd7 {[%clk 0:00:27]} 39. Kxd4 {[%clk 0:00:13]}  Kxd6 {[%clk 0:00:28]} 40. Rh8 {[%clk 0:00:11]}  Kc7+ {[%clk 0:00:28]} 41. Ke4 {[%clk 0:00:11]}  Kb6 {[%clk 0:00:28]} 42. Rc8 {[%clk 0:00:11]}  Re7+ {[%clk 0:00:28]} 43. Kf3 {[%clk 0:00:10]}  Rc7 {[%clk 0:00:28]} 44. Rd8 {[%clk 0:00:09]}  Kxa6 {[%clk 0:00:29]} 45. d4 {[%clk 0:00:09]}  Kb6 {[%clk 0:00:27]} 46. e4 {[%clk 0:00:10]}  a5 {[%clk 0:00:28]} 47. bxa5+ {[%clk 0:00:09]}  Kxa5 {[%clk 0:00:29]} 48. e5 {[%clk 0:00:10]}  fxe5 {[%clk 0:00:29]} 49. dxe5 {[%clk 0:00:10]}  c5 {[%clk 0:00:27]} 50. Ke4 {[%clk 0:00:07]}  c4 {[%clk 0:00:27]} 51. e6 {[%clk 0:00:06]}  c3 {[%clk 0:00:28]} 52. Rd7 {[%clk 0:00:07]}  Rc4+ {[%clk 0:00:28]} 53. Kd5 {[%clk 0:00:06]}  c2 {[%clk 0:00:29]} 54. e7 {[%clk 0:00:06]}  c1=Q {[%clk 0:00:29]} 55. e8=Q {[%clk 0:00:06]}  Qd2+ {[%clk 0:00:28]} 56. Ke6 {[%clk 0:00:06]}  Qe3+ {[%clk 0:00:29]} 57. Kf7 {[%clk 0:00:06]}  Rf4+ {[%clk 0:00:29]} 0-1


[Site "https://www.chess.com"]